[Event "8th Montevideo Open 2025"]
[Site "Montevideo"]
[Date "2025.02.01"]
[Round "2.20"]
[White "Estrada Nieto, Julian"]
[Black "Miller, Ariel"]
[Result "1-0"]
[Annotator "RC"]
[ECO "A43"]
[WhiteElo "2195"]
[BlackElo "1835"]
[PlyCount "98"]
[EventDate "2025.02.01"]
[EventType "swiss"]
[EventCountry "URU"]
[SourceTitle "playchess.com"]
[Source "ChessBase"]
[SourceQuality "1"]
[TimeControl "5400+30"]

1. e4 {[%emt 0:06:07]} e6 {[%emt 0:00:09]} 2. d4 {[%emt 0:00:24]} c5 {[%emt 0:00:07]} 3. d5 {[%emt 0:00:40]} Nf6 {[%emt 0:00:43]} 4. Nc3 {[%emt 0:00:19]} exd5 {[%emt 0:00:42]} 5. e5 {[%emt 0:10:09]} Ng8 {[%emt 0:03:30]} 6. Nxd5 {[%emt 0:00:26]} Ne7 {[%emt 0:00:54]} 7. Bg5 {[%emt 0:09:15]} Nbc6 {[%emt 0:02:28]} 8. Nf3 {[%emt 0:00:23]} h6 {[%emt 0:01:35]} 9. Bh4 {[%emt 0:02:13]} Qa5+ {[%emt 0:01:34]} 10. c3 {[%emt 0:00:51]} Nxd5 {[%emt 0:03:51]} 11. Qxd5 {[%emt 0:00:04]} g5 {[%emt 0:02:02]} 12. Bg3 {[%emt 0:04:45]} Bg7 {[%emt 0:04:47]} 13. h4 {[%emt 0:09:39]} g4 {[%emt 0:03:58]} 14. Nd2 {[%emt 0:01:34]} O-O {[%emt 0:16:34]} 15. Nc4 {[%emt 0:01:11]} Qd8 {[%emt 0:00:42]} 16. Be2 {[%emt 0:05:20]} Re8 {[%emt 0:03:39]} 17. Nd6 {[%emt 0:11:16]} Re7 {[%emt 0:01:33]} 18. Nf5 {[%emt 0:05:33]} Re8 {[%emt 0:06:27]} 19. Nxg7 {[%emt 0:00:15]} Kxg7 {[%emt 0:00:07]} 20. Qxc5 {[%emt 0:06:29]} Qe7 {[%emt 0:03:01]} 21. Qxe7 {[%emt 0:00:16]} Rxe7 {[%emt 0:00:05]} 22. O-O-O {[%emt 0:02:03]} d6 {[%emt 0:10:49]} 23. Rxd6 {[%emt 0:04:10]} Nxe5 {[%emt 0:00:32]} 24. Bf4 {[%emt 0:02:56]} Ng6 {[%emt 0:01:45]} 25. Be3 {[%emt 0:00:13]} h5 {[%emt 0:05:09]} 26. Rd8 {[%emt 0:02:53]} Rd7 {[%emt 0:05:01]} 27. Re8 {[%emt 0:03:43]} Re7 {[%emt 0:00:39]} 28. Bd4+ {[%emt 0:01:18]} Kh7 {[%emt 0:01:19]} 29. Rxe7 {[%emt 0:00:16]} Nxe7 {[%emt 0:00:04]} 30. Bd3+ {[%emt 0:02:20]} Nf5 {[%emt 0:01:40]} 31. Re1 {[%emt 0:01:15]} Be6 {[%emt 0:05:00]} 32. Re5 {[%emt 0:02:01]} Kg6 {[%emt 0:00:01]} 33. Be4 {[%emt 0:00:34]} Rd8 {[%emt 0:06:33]} 34. g3 {[%emt 0:01:45]} b6 {[%emt 0:00:25]} 35. a4 {[%emt 0:00:51]} Rd6 {[%emt 0:01:07]} 36. a5 {[%emt 0:00:25]} bxa5 {[%emt 0:01:03]} 37. Rxa5 {[%emt 0:00:14]} a6 {[%emt 0:00:51]} 38. Be5 {[%emt 0:00:39]} Rd8 {[%emt 0:01:53]} 39. Rxa6 {[%emt 0:00:12]} Re8 {[%emt 0:01:00]} 40. Bd4 {[%emt 0:00:32]} Rb8 {[%emt 0:01:46]} 41. b4 {[%emt 0:00:33]} Rb5 {[%emt 0:00:18]} 42. Ra5 {[%emt 0:00:43]} Rxa5 {[%emt 0:00:33]} 43. bxa5 {[%emt 0:00:02]} Bc8 {[%emt 0:00:52]} 44. Bd3 {[%emt 0:00:34]} f6 {[%emt 0:00:08]} 45. a6 {[%emt 0:00:28]} Bxa6 {[%emt 0:05:32]} 46. Bxa6 {[%emt 0:00:11]} Nd6 {[%emt 0:00:07]} 47. Bd3+ {[%emt 0:01:23]} Kf7 {[%emt 0:00:35]} 48. c4 {[%emt 0:00:24]} Ke6 {[%emt 0:00:20]} 49. c5 {[%emt 0:00:19]} Kd5 {[%emt 0:01:30]} 1-0

[Event "8th Montevideo Open 2025"]
[Site "Montevideo"]
[Date "2025.02.01"]
[Round "2.21"]
[White "Pichuaga, Juan Pablo"]
[Black "Gonzalez Prestes, Marcos"]
[Result "1-0"]
[Annotator "TA"]
[ECO "C26"]
[WhiteElo "1973"]
[BlackElo "1596"]
[PlyCount "75"]
[EventDate "2025.02.01"]
[EventType "swiss"]
[EventCountry "URU"]
[SourceTitle "playchess.com"]
[Source "ChessBase"]
[SourceQuality "1"]
[TimeControl "5400+30"]

{[%evp 9,75,-26,-10,-10,-9,-9,-10,-15,-11,-9,49,39,95,71,93,87,92,64,58,62,108,101,92,79,86,74,144,140,138,140,160,172,162,164,192,195,196,197,204,220,261,291,342,325,393,400,412,419,443,451,491,448,521,510,597,385,615,625,625,604,888,907,1126,1103,1042,1018,937,858]} 1. e4 {[%emt 0:04:52]} e5 {[%emt 0:00:54]} 2. Nc3 {[%emt 0:01:12]} Nc6 {[%emt 0:03:04]} 3. d3 {[%emt 0:01:54]} Nf6 {[%emt 0:01:58]} 4. Bg5 {[%emt 0:02:24]} Be7 {[%emt 0:00:47]} 5. Qd2 {[%emt 0:01:06]} d6 {[%emt 0:06:09]} 6. Nge2 {[%emt 0:04:47] C26: Vienna Game: 2...Nf6, sidelines .} Be6 {[%emt 0:08:54]} 7. d4 {[%emt 0:06:22]} exd4 {[%emt 0:05:00]} 8. Nxd4 {[%emt 0:01:06] The position is equal.} Nxd4 {[%emt 0:04:34]} 9. Qxd4 {[%emt 0:02:42]} c5 $146 {[%emt 0:05:45]} (9... O-O $11) (9... O-O 10. O-O-O Nd7 11. Bxe7 Qxe7 12. f4 Nb6 13. h4 f5 14. Re1 Qf7 15. a4 a5 {1-0 Jul Perez,A (1987)-Del Amo Carbo,J (2178) Barbera del Valles op 42nd 2019 (8)}) 10. Bb5+ $14 {[%emt 0:02:54]} Bd7 {[%emt 0:04:08]} ({Black should try} 10... Kf8 $1 $14 11. Qd2 h6) 11. Qa4 {[%emt 0:04:02][%cal Oe4e5] Black must now prevent e5!. White is more active.} Bxb5 {[%emt 0:05:02]} 12. Qxb5+ {[%emt 0:01:31]} Qd7 {[%emt 0:02:11]} 13. Qxd7+ {[%emt 0:01:38]} (13. O-O-O {feels hotter.} Rd8 14. Qd3 Qg4 15. Bxf6 Bxf6 16. Nd5) 13... Kxd7 {[%emt 0:00:29]} 14. O-O-O {[%emt 0:00:47]} Ng4 {[%emt 0:07:28] Black is now going downhill.} (14... Kc6 $14) 15. Bxe7 $16 {[%emt 0:01:57]} Kxe7 {[%emt 0:01:45]} 16. Nd5+ {[%emt 0:00:52]} Kd7 {[%emt 0:00:29]} 17. Rd2 {[%emt 0:00:48]} Ne5 {[%emt 0:02:45]} (17... Rad8 $142) 18. Ne3 {[%emt 0:01:26]} Rad8 {[%emt 0:07:57]} 19. Rhd1 {[%emt 0:06:11]} Kc6 {[%emt 0:05:41]} 20. f4 {[%emt 0:02:46]} Ng6 {[%emt 0:02:08]} 21. g3 $36 {[%emt 0:01:24][%mdl 2048] White has strong initiative.} Rd7 {[%emt 0:02:58]} 22. Nf5 {[%emt 0:03:43][%csl LRd6,LRg7]} Rhd8 {[%emt 0:06:05]} 23. Nxg7 {[%emt 0:01:35]} d5 {[%emt 0:01:33]} 24. e5 {[%emt 0:01:37]} d4 {[%emt 0:04:58]} 25. Nh5 {[%emt 0:00:34]} Rc7 {[%emt 0:01:44]} 26. c3 {[%emt 0:01:42]} Rdc8 {[%emt 0:03:14]} 27. cxd4 {[%emt 0:00:42]} cxd4 {[%emt 0:00:22]} 28. Rxd4 {[%emt 0:00:28]} Kb5+ {[%emt 0:00:52]} 29. Kb1 {[%emt 0:00:14]} Rc2 {[%emt 0:01:39]} 30. R4d2 {[%emt 0:00:22]} R2c4 {[%emt 0:01:13]} 31. Nf6 {[%emt 0:00:28]} Ne7 {[%emt 0:01:01]} 32. Nd5 {[%emt 0:00:43]} Nf5 {[%emt 0:01:55]} (32... Nxd5 $142 33. Rxd5+ Ka6) 33. b3 $18 {[%emt 0:42:11] White is clearly winning.} R4c5 {[%emt 0:01:29]} 34. a4+ {[%emt 0:01:29]} Kc6 {[%emt 0:00:45]} 35. g4 {[%emt 0:01:14]} Nh4 {[%emt 0:00:30]} 36. Ne7+ {[%emt 0:00:10]} Kb6 {[%emt 0:00:26]} 37. Nxc8+ {[%emt 0:00:08]} Rxc8 {[%emt 0:00:22]} 38. Rd6+ {[%emt 0:01:21] Weighted Error Value: White=0.15 (very precise) /Black=0.56  Mistake:       	---       	Black=5      Inaccurate:     	White=2     	---        OK:         	White=13    	Black=6      Best:        	White=3     	Black=1} 1-0

[Event "8th Montevideo Open 2025"]
[Site "Montevideo"]
[Date "2025.02.01"]
[Round "2.22"]
[White "Cardozo, Camila"]
[Black "Pos, Hans"]
[Result "1/2-1/2"]
[Annotator "TA"]
[ECO "A40"]
[WhiteElo "1677"]
[BlackElo "1950"]
[PlyCount "53"]
[EventDate "2025.02.01"]
[EventType "swiss"]
[EventCountry "URU"]
[SourceTitle "playchess.com"]
[Source "ChessBase"]
[SourceQuality "1"]
[TimeControl "5400+30"]

{[%evp 9,53,59,72,52,72,57,68,51,64,40,46,46,50,41,43,43,43,41,56,2,57,57,57,49,64,0,35,18,49,53,58,27,118,103,120,108,135,148,137,109,169,156,200,191,169,-17]} 1. d4 {[%emt 0:00:53]} c5 {[%emt 0:00:08]} 2. d5 {[%emt 0:00:21]} g6 {[%emt 0:00:03]} 3. c4 {[%emt 0:01:21]} Bg7 {[%emt 0:00:04]} 4. e4 {[%emt 0:06:01]} d6 {[%emt 0:02:00]} 5. Nf3 {[%emt 0:01:11]} Bg4 {[%emt 0:04:51]} 6. h3 {[%emt 0:04:38] A40: Unusual replies to 1 d4.} Bxf3 {[%emt 0:00:07]} 7. Qxf3 {[%emt 0:00:22]} Nd7 {[%emt 0:00:06][%cal Bb8d7,Bd7e5,Be5d3][%mdl 32]} 8. Nc3 {[%emt 0:01:04] White is slightly better.} Ngf6 {[%emt 0:01:50]} 9. Bd3 {[%emt 0:05:18]} Ne5 {[%emt 0:01:28]} 10. Qd1 {[%emt 0:00:22]} Nxd3+ 11. Qxd3 {[%emt 0:00:05]} Nd7 {[%emt 0:00:57]} 12. O-O {[%emt 0:07:33]} O-O {[%emt 0:00:09]} 13. Be3 {[%emt 0:03:14]} Qa5 {[%emt 0:06:05]} 14. Rac1 $146 {[%emt 0:04:10]} (14. Bd2 $14) (14. Bd2 a6 15. Nd1 Qc7 16. Bc3 Ne5 17. Qe2 b5 18. cxb5 axb5 19. f4 Nc4 20. Bxg7 Kxg7 {½-½ Kotomkin,I-Tishin,A (2018) Gorodets op 2012 (8)}) 14... Qb4 {[%emt 0:10:19]} ({Black should play} 14... Rfb8 $11) 15. b3 $14 {[%emt 0:04:07]} a6 {[%emt 0:00:48][%cal Ob7b5]} 16. Bd2 {[%emt 0:02:17][%cal Oc3b5] [#]} Qb6 {[%emt 0:02:20]} 17. Be3 {[%emt 0:06:10]} (17. f4 $14) 17... Qc7 {[%emt 0:02:48]} 18. a4 {[%emt 0:01:21]} Rae8 {[%emt 0:07:40]} 19. f4 {[%emt 0:06:39][%cal Bf2f4,Bf4f5][%mdl 32]} Nf6 {[%emt 0:09:15]} 20. e5 {[%emt 0:15:51][%cal Be4e5,Be5e6][%mdl 32]} Nd7 {[%emt 0:06:15]} (20... dxe5 $11 21. f5 (21. fxe5 Nd7 $18) 21... Rd8) 21. e6 $16 {[%emt 0:04:22] White plays in the center} Nf6 {[%emt 0:01:30]} 22. g4 {[%emt 0:01:02] White has more active pieces.} Rc8 {[%emt 0:07:34] White has space advantage and is better} 23. f5 {[%emt 0:03:40]} fxe6 {[%emt 0:05:08]} 24. dxe6 {[%emt 0:02:24] Threatens to win with g5. White has a king side majority} d5 {[%emt 0:04:19]} 25. Bf4 $18 {[%emt 0:03:27] White is clearly better.} (25. cxd5 $2 {loses.} Qg3+ 26. Kh1 Qxh3+ 27. Kg1 Nxg4 $19 (27... Qxg4+ $2 28. Kf2 $19)) 25... dxc4 {[%emt 0:00:06]} 26. Qxc4 {[%emt 0:00:10]} Qc6 {[%emt 0:01:52] [#]} 27. Rcd1 $2 {[%emt 0:07:10] Weighted Error Value: White=0.18 (very precise) /Black=0.21 (precise)   Missed win:     	White=1     	---        Mistake:       	White=2     	Black=3      Inaccurate:     	White=1     	Black=2      OK:         	White=5     	Black=6      Best:        	White=2     	Black=1} (27. g5 $1 $18 {[%cal Rg5f6]}) 1/2-1/2

[Event "8th Montevideo Open 2025"]
[Site "Montevideo"]
[Date "2025.02.01"]
[Round "2.23"]
[White "Zaruski, Julio"]
[Black "Comas, Martin"]
[Result "1/2-1/2"]
[Annotator "NA RC"]
[ECO "B22"]
[WhiteElo "1860"]
[BlackElo "1716"]
[PlyCount "68"]
[EventDate "2025.02.01"]
[EventType "swiss"]
[EventCountry "URU"]
[SourceTitle "playchess.com"]
[Source "ChessBase"]
[SourceQuality "1"]
[TimeControl "5400+30"]

1. e4 {[%emt 0:00:30]} c5 {[%emt 0:03:20]} 2. Nf3 {[%emt 0:00:00]} Nc6 {[%emt 0:00:13]} 3. c3 {[%emt 0:00:20]} g6 {[%emt 0:00:19]} 4. Bd3 {[%emt 0:01:12]} Bg7 {[%emt 0:00:32]} 5. Bc2 {[%emt 0:00:11]} d5 {[%emt 0:00:45]} 6. exd5 {[%emt 0:01:03]} Qxd5 {[%emt 0:00:44]} 7. h3 {[%emt 0:00:15]} Nf6 {[%emt 0:00:27]} 8. Na3 {[%emt 0:01:03]} a6 {[%emt 0:01:15]} 9. Bb3 {[%emt 0:00:46]} Qe4+ {[%emt 0:00:49]} 10. Qe2 {[%emt 0:00:04]} O-O {[%emt 0:00:41]} 11. d3 {[%emt 0:00:34]} Qxe2+ {[%emt 0:01:42]} 12. Kxe2 {[%emt 0:00:31]} Nd7 {[%emt 0:03:56]} 13. Be3 {[%emt 0:04:10]} b5 {[%emt 0:01:31]} 14. Bd5 {[%emt 0:05:00]} Bb7 {[%emt 0:00:16]} 15. Nc2 {[%emt 0:01:33]} e6 {[%emt 0:01:24]} 16. Bxc6 {[%emt 0:02:02]} Bxc6 {[%emt 0:00:04]} 17. Rhg1 {[%emt 0:00:25]} Rac8 {[%emt 0:01:31]} 18. d4 {[%emt 0:01:19]} Be4 {[%emt 0:01:34]} 19. Nfe1 {[%emt 0:04:03]} e5 {[%emt 0:05:13]} 20. dxc5 {[%emt 0:02:45]} Nxc5 {[%emt 0:00:26]} 21. f3 {[%emt 0:00:39]} Bd5 {[%emt 0:02:34]} 22. Kf2 {[%emt 0:04:27]} Na4 {[%emt 0:01:46]} 23. Nb4 {[%emt 0:00:42]} Bb7 {[%emt 0:00:25]} 24. Rb1 {[%emt 0:02:30]} a5 {[%emt 0:00:49]} 25. Nbc2 {[%emt 0:01:44]} Rfd8 {[%emt 0:00:57]} 26. f4 {[%emt 0:01:56]} Bd5 {[%emt 0:07:02]} 27. fxe5 {[%emt 0:01:29]} Bxe5 {[%emt 0:06:41]} 28. Nf3 {[%emt 0:01:09]} Bg7 {[%emt 0:01:57]} 29. a3 {[%emt 0:03:42]} Be4 {[%emt 0:02:16]} 30. Rgc1 {[%emt 0:04:41]} Nc5 {[%emt 0:00:59]} 31. Nfe1 {[%emt 0:00:40]} a4 {[%emt 0:06:56]} 32. Rd1 {[%emt 0:00:52]} Nd3+ {[%emt 0:00:58]} 33. Nxd3 {[%emt 0:00:21]} Bxd3 {[%emt 0:02:12]} 34. Rbc1 {[%emt 0:00:35]} Bxc2 {[%emt 0:01:50]} 1/2-1/2

[Event "8th Montevideo Open 2025"]
[Site "Montevideo"]
[Date "2025.02.01"]
[Round "2.24"]
[White "Kaciusis, Daniel"]
[Black "Lanzilotta, Filippo"]
[Result "0-1"]
[Annotator "NA RC"]
[ECO "C66"]
[WhiteElo "1675"]
[BlackElo "1854"]
[PlyCount "58"]
[EventDate "2025.02.01"]
[EventType "swiss"]
[EventCountry "URU"]
[SourceTitle "playchess.com"]
[Source "ChessBase"]
[SourceQuality "1"]
[TimeControl "5400+30"]

1. e4 {[%emt 1:31:00]} e5 {[%emt 0:22:20]} 2. Nf3 {[%emt 0:00:00]} Nf6 {[%emt 0:00:04]} 3. Nc3 {[%emt 0:01:00]} Nc6 4. Bb5 {[%emt 0:00:00]} d6 {[%emt 0:01:49]} 5. h3 {[%emt 0:00:00]} Be7 {[%emt 0:00:10]} 6. d4 {[%emt 0:00:00]} exd4 {[%emt 0:01:54]} 7. Nxd4 {[%emt 0:00:00]} Bd7 {[%emt 0:05:49]} 8. O-O {[%emt 0:00:00]} O-O {[%emt 0:00:36]} 9. Be3 {[%emt 0:00:00]} Nxd4 {[%emt 0:01:12]} 10. Qxd4 {[%emt 0:00:00]} c6 {[%emt 1:01:36]} 11. Bd3 b5 {[%emt 0:00:00]} 12. b4 {[%emt 0:00:00]} Qc7 {[%emt 0:00:00]} 13. Bf4 {[%emt 0:00:00]} Nh5 {[%emt 0:01:30]} 14. Bd2 Bf6 15. Qe3 c5 16. Nd5 Qc6 17. Nxf6+ Nxf6 18. bxc5 dxc5 19. c3 Rfe8 {[%emt 0:00:00]} 20. Rae1 {[%emt 0:00:00]} Rad8 {[%emt 0:00:00]} 21. Bb1 {[%emt 0:00:00]} Be6 {[%emt 0:00:00]} 22. Bc1 {[%emt 0:00:00]} Bc4 {[%emt 0:00:00]} 23. f3 {[%emt 0:00:00]} Bxf1 {[%emt 0:00:00]} 24. Kxf1 {[%emt 0:00:00]} Qc7 {[%emt 0:00:00]} 25. f4 {[%emt 0:00:00]} Nd5 {[%emt 0:00:00]} 26. Qf3 {[%emt 0:00:00]} Nb6 {[%emt 0:00:00]} 27. e5 {[%emt 0:00:00]} Nc4 {[%emt 0:00:00]} 28. Qe2 {[%emt 0:00:00]} Qd7 {[%emt 0:00:00]} 29. Kg1 {[%emt 0:00:00]} g6 {[%emt 0:00:00]} 0-1

[Event "8th Montevideo Open 2025"]
[Site "Montevideo"]
[Date "2025.02.02"]
[Round "3.1"]
[White "Shoker, Samy"]
[Black "Carbone, Diego"]
[Result "1-0"]
[Annotator "TA"]
[ECO "A07"]
[WhiteElo "2446"]
[BlackElo "2216"]
[PlyCount "65"]
[EventDate "2025.02.01"]
[EventType "swiss"]
[EventCountry "URU"]
[SourceTitle "playchess.com"]
[Source "ChessBase"]
[SourceQuality "1"]
[TimeControl "5400+30"]

{[%evp 11,65,-16,17,0,0,0,22,23,75,9,15,10,4,9,7,20,9,12,7,6,16,14,20,20,12,38,38,0,30,48,58,67,225,213,213,215,336,355,503,500,528,523,514,525,524,528,586,524,529,529,518,509,588,542,685,672]} 1. Nf3 {[%emt 0:00:03]} Nf6 {[%emt 0:00:41]} 2. g3 {[%emt 0:00:12]} d5 {[%emt 0:00:31]} 3. Bg2 {[%emt 0:00:06]} e6 {[%emt 0:00:06]} 4. O-O {[%emt 0:00:40]} Be7 {[%emt 0:00:05]} 5. d3 {[%emt 0:02:41]} O-O {[%emt 0:01:10]} 6. Nbd2 {[%emt 0:00:19]} Nc6 {[%emt 0:01:14]} 7. a3 {[%emt 0:04:24] A07: Réti Opening: New York and Capablanca Systems.} a5 {[%emt 0:01:25]} 8. b3 {[%emt 0:01:40]} Re8 $146 {[%emt 0:03:37]} (8... e5 9. Bb2 e4 10. Nd4 e3 11. fxe3 Ng4 12. Nxc6 bxc6 13. Rf3 Bc5 14. Bd4 Qe7 {1-0 Sameer,L (2210)-Lysyj,I (2589) Titled Tuesday intern op 30th Apr Early blitz 2024 (1)}) 9. Bb2 {[%emt 0:00:28] The position is equal.} Bc5 {[%emt 0:05:34] [#]} (9... Bf8 $11) 10. c4 {[%emt 0:03:03]} (10. d4 $1 $16 {[%cal Rd4c5]}) 10... d4 $11 {[%emt 0:04:36] [#]} 11. b4 $1 {[%emt 0:00:22]} axb4 {[%emt 0:00:25]} 12. Nb3 {[%emt 0:00:13]} Bf8 {[%emt 0:07:34]} 13. axb4 {[%emt 0:01:59]} Rxa1 {[%emt 0:00:57]} 14. Qxa1 {[%emt 0:02:03] and b5 should not be overlooked} e5 {[%emt 0:08:07]} 15. b5 {[%emt 0:00:13]} Nb4 {[%emt 0:04:05]} 16. Qa4 {[%emt 0:05:13]} c5 {[%emt 0:04:12]} 17. bxc6 {[%emt 0:02:10]} Nxc6 {[%emt 0:00:38]} 18. Nfd2 {[%emt 0:06:28][%cal Ob2a3]} Bg4 {[%emt 0:04:50]} 19. Re1 {[%emt 0:00:27]} Qa8 {[%emt 0:07:20]} 20. Qb5 {[%emt 0:08:31]} Qa2 {[%emt 0:03:01]} 21. Rb1 {[%emt 0:00:50]} (21. Bxc6 $2 bxc6 22. Nc1 cxb5 $19) (21. Qxb7 Nd8 22. Qb5 (22. Nc1 $2 Qa5 $19) 22... Qxb2 $17) 21... Bb4 $2 {[%emt 0:14:06] Loses the game.} (21... Bxe2 $2 22. Nc1 (22. Qxb7 $2 {loses.} Rb8 $19) 22... Qa8 23. Nxe2 $18) (21... Nd7 $14) 22. Qxb7 $18 {[%emt 0:06:49]} ({Not} 22. Bxc6 Bxd2 23. Nxd2 bxc6 $11) 22... Bxd2 {[%emt 0:03:26]} 23. Nxd2 {[%emt 0:00:09]} Rb8 {[%emt 0:02:37]} (23... Nd8 $142 24. Qb5 Bd7) 24. Qxc6 {[%emt 0:00:23]} Bd7 {[%emt 0:00:38]} (24... h6 $142 25. Be4 Nxe4 26. Qxe4 Bh3) 25. Qc7 {[%emt 0:01:04][%csl LRb8,LRe5] White is clearly winning.} Rxb2 {[%emt 0:01:45]} 26. Rxb2 {[%emt 0:00:25]} Qxb2 {[%emt 0:00:05]} 27. Qd8+ {[%emt 0:00:21]} Be8 {[%emt 0:00:06]} 28. Ne4 {[%emt 0:00:37]} Qa1+ {[%emt 0:01:51]} 29. Bf1 {[%emt 0:00:08] Active counter play!} Qa4 {[%emt 0:02:13]} 30. Nxf6+ {[%emt 0:00:11]} gxf6 {[%emt 0:00:06]} 31. Qxf6 {[%emt 0:00:06]} Qa5 {[%emt 0:00:31]} 32. h4 {[%emt 0:00:14][%cal Bh2h4,Bh4h5][%mdl 32]} Ba4 {[%emt 0:01:53]} 33. h5 {[%emt 0:00:27] Weighted Error Value: White=0.11 (very precise) /Black=0.42  Mistake:       	White=1     	Black=4      Inaccurate:     	White=1     	Black=1      OK:         	White=12    	Black=11     Best:        	White=3     	Black=2      Brilliant:      	White=1     	---} 1-0

[Event "8th Montevideo Open 2025"]
[Site "Montevideo"]
[Date "2025.02.02"]
[Round "3.2"]
[White "Dominguez, Facundo"]
[Black "Coro, Lucas"]
[Result "0-1"]
[Annotator "TA"]
[ECO "B22"]
[WhiteElo "2159"]
[BlackElo "2415"]
[PlyCount "76"]
[EventDate "2025.02.01"]
[EventType "swiss"]
[EventCountry "URU"]
[SourceTitle "playchess.com"]
[Source "ChessBase"]
[SourceQuality "1"]
[TimeControl "5400+30"]

{[%evp 23,76,0,0,-7,-7,-27,-15,-18,-18,-37,-37,-38,-45,-41,-23,-80,-51,-54,-53,-67,-69,-60,-53,-43,-27,-74,-50,-85,-92,-95,-89,-94,-89,-104,-70,-80,-80,-85,-77,-85,-78,-81,-81,-76,-74,-88,-79,-99,-114,-160,-162,-149,-147,-331,-319]} 1. e4 {[%emt 0:00:03]} c5 {[%emt 0:00:21]} 2. c3 {[%emt 0:00:34]} Nf6 {[%emt 0:00:27]} 3. e5 {[%emt 0:00:06]} Nd5 {[%emt 0:00:07]} 4. d4 {[%emt 0:00:10]} cxd4 {[%emt 0:00:08]} 5. Nf3 {[%emt 0:00:08]} d6 {[%emt 0:06:42]} 6. cxd4 {[%emt 0:02:14]} e6 {[%emt 0:00:55]} 7. Bc4 {[%emt 0:04:54]} Be7 {[%emt 0:00:08]} 8. O-O {[%emt 0:00:15]} O-O {[%emt 0:00:06]} 9. Qe2 {[%emt 0:01:03]} b6 {[%emt 0:00:07]} 10. Nc3 {[%emt 0:01:35]} Nxc3 {[%emt 0:03:15]} 11. bxc3 {[%emt 0:00:02]} Bb7 {[%emt 0:01:19]} 12. Bf4 {[%emt 0:05:17]} Nc6 {[%emt 0:09:44]} 13. Rfd1 {[%emt 0:05:42] d5 is the strong threat. B22: Sicilian: 2 c3.} dxe5 {[%emt 0:18:52]} 14. dxe5 {[%emt 0:11:21]} Qc7 {[%emt 0:00:14]} 15. Bd3 {[%emt 0:00:33] The position is equal.} Rfd8 {[%emt 0:05:34]} 16. Ng5 {[%emt 0:04:04]} Bxg5 $146 {[%emt 0:09:42] Successful Defense Black} (16... g6 17. Qe3 Rd5 18. c4 Rxe5 19. Bxe5 Nxe5 20. Qg3 Rc8 21. Bf1 Nxc4 22. Qh4 h5 23. Bxc4 Qxc4 24. Qxc4 Rxc4 {0-1 Molnar,J (2015)-Magyar,A (2235) HUN-chT 2223 2022 (3.12)}) 17. Bxg5 {[%emt 0:00:03]} Rd5 {[%emt 0:04:12]} 18. f4 {[%emt 0:10:07]} Ne7 {[%emt 0:01:27]} 19. Be4 {[%emt 0:14:21]} (19. c4 $11 {keeps the balance.} Rd7 20. h3) 19... Rc5 {[%emt 0:00:36]} 20. Bxe7 {[%emt 0:04:28]} Qxe7 {[%emt 0:00:13]} 21. Rd3 {[%emt 0:05:33][%cal Oe4h7]} Bxe4 {[%emt 0:09:20]} 22. Qxe4 {[%emt 0:00:03]} Rac8 {[%emt 0:02:14]} 23. Rad1 {[%emt 0:00:36]} R5c7 {[%emt 0:00:06][%cal Og7g6] Prevents Rd7.} (23... Rxc3 $2 24. Rxc3 Rf8 (24... Rxc3 $2 {perishes.} 25. Qa8+ Qf8 26. Rd8 $18) 25. f5 exf5 26. Qxf5 $18) 24. Qb4 {[%emt 0:10:13]} (24. Qe3 $11) 24... Qe8 $17 {[%emt 0:00:07]} 25. g3 {[%emt 0:02:12]} g6 {[%emt 0:00:41]} 26. Kf2 {[%emt 0:04:33]} Kg7 {[%emt 0:00:10]} 27. Qd4 {[%emt 0:03:43]} Qe7 {[%emt 0:05:13]} 28. Qd6 {[%emt 0:01:37]} Qxd6 {[%emt 0:02:07]} 29. exd6 {[%emt 0:00:09][%mdl 4096] Endgame KRR-KRR} Rd7 {[%emt 0:00:05]} 30. Ke2 {[%emt 0:03:40]} Rc6 {[%emt 0:00:05]} 31. R1d2 {[%emt 0:01:19]} Kf8 {[%emt 0:00:23]} 32. g4 {[%emt 0:00:42]} Rc4 {[%emt 0:00:21]} 33. Ke3 {[%emt 0:01:49]} Ke8 {[%emt 0:05:15]} 34. g5 {[%emt 0:02:14]} Rd8 {[%emt 0:00:20]} 35. Rb2 {[%emt 0:01:42]} Kd7 {[%emt 0:00:25]} 36. Rb3 {[%emt 0:00:44]} (36. Rb4 $142 Rdc8 37. Rxc4 Rxc4 38. Kf3) 36... Ra4 {[%emt 0:02:53]} 37. a3 {[%emt 0:00:34]} Rc8 {[%emt 0:00:18]} 38. Rb1 $2 {[%emt 0:00:34] [#]} (38. Rd4 $17 Ra5 (38... Rxd4 $2 39. Kxd4 Rc5 40. Rb4 $19) 39. a4) 38... Rxa3 {[%emt 0:00:27] Weighted Error Value: White=0.23 (precise) /Black=0.04 (flawless)   Loses game:     	White=1     	---        Mistake:       	White=3     	---        Inaccurate:     	White=1     	Black=2      OK:         	White=6     	Black=16} 0-1